[Event "Titled Tuesday Blitz August 16 Late 2022"]
[White "Michalski, Olaf"]
[Black "Proudian, Armen"]
[WhiteFideId "1106740"]
[BlackFideId "2130734"]
[WhiteElo "1937"]
[BlackElo "2380"]
[Result "1-0"]
[Round "03"]
[TimeControl "180+1"]
[Date "2022.08.18"]
[WhiteClock "0:00:00"]
[BlackClock "0:00:00"]

1. d4 {[%clk 0:00:00]}  Nf6 {[%clk 0:00:00]} 2. c4 {[%clk 0:00:00]}  e6 {[%clk 0:00:00]} 3. Nf3 {[%clk 0:00:00]}  d5 {[%clk 0:00:00]} 4. Nc3 {[%clk 0:00:00]}  Bb4 {[%clk 0:00:00]} 5. Qa4+ {[%clk 0:00:00]}  Nc6 {[%clk 0:00:00]} 6. e3 {[%clk 0:00:00]}  O-O {[%clk 0:00:00]} 7. c5 {[%clk 0:00:00]}  Ne4 {[%clk 0:00:00]} 8. Qc2 {[%clk 0:00:00]}  e5 {[%clk 0:00:00]} 9. a3 {[%clk 0:00:00]}  Bxc3+ {[%clk 0:00:00]} 10. bxc3 {[%clk 0:00:00]}  Bf5 {[%clk 0:00:00]} 11. Bd3 {[%clk 0:00:00]}  Re8 {[%clk 0:00:00]} 12. O-O {[%clk 0:00:00]}  Qf6 {[%clk 0:00:00]} 13. Rd1 {[%clk 0:00:00]}  Rad8 {[%clk 0:00:00]} 14. Qb2 {[%clk 0:00:00]}  b6 {[%clk 0:00:00]} 15. Bb5 {[%clk 0:00:00]}  exd4 {[%clk 0:00:00]} 16. cxd4 {[%clk 0:00:00]}  bxc5 {[%clk 0:00:00]} 17. dxc5 {[%clk 0:00:00]}  Qxb2 {[%clk 0:00:00]} 18. Bxb2 {[%clk 0:00:00]}  Re6 {[%clk 0:00:00]} 19. Rac1 {[%clk 0:00:00]}  Bg4 {[%clk 0:00:00]} 20. h3 {[%clk 0:00:00]}  Bxf3 {[%clk 0:00:00]} 21. gxf3 {[%clk 0:00:00]}  Ng5 {[%clk 0:00:00]} 22. Kg2 {[%clk 0:00:00]}  Rg6 {[%clk 0:00:00]} 23. f4 {[%clk 0:00:00]}  Ne4+ {[%clk 0:00:00]} 24. Kf3 {[%clk 0:00:00]}  Ne7 {[%clk 0:00:00]} 25. c6 {[%clk 0:00:00]}  Nf5 {[%clk 0:00:00]} 26. Be5 {[%clk 0:00:00]}  Nh4+ {[%clk 0:00:00]} 27. Ke2 {[%clk 0:00:00]}  Rg2 {[%clk 0:00:00]} 28. Bxc7 {[%clk 0:00:00]}  Rxf2+ {[%clk 0:00:00]} 29. Kd3 {[%clk 0:00:00]}  Rc8 {[%clk 0:00:00]} 30. Be5 {[%clk 0:00:00]}  f6 {[%clk 0:00:00]} 31. Bd4 {[%clk 0:00:00]}  Ng2 {[%clk 0:00:00]} 32. Ba6 {[%clk 0:00:00]}  Rc7 {[%clk 0:00:00]} 33. Bxa7 {[%clk 0:00:00]}  Ra2 {[%clk 0:00:00]} 34. Bb6 {[%clk 0:00:00]}  Rxa3+ {[%clk 0:00:00]} 35. Kd4 {[%clk 0:00:00]}  Re7 {[%clk 0:00:00]} 36. Bc5 {[%clk 0:00:00]}  Nxc5 {[%clk 0:00:00]} 37. Rxc5 {[%clk 0:00:00]}  Rxa6 {[%clk 0:00:00]} 38. c7 {[%clk 0:00:00]}  Rxc7 {[%clk 0:00:00]} 39. Rxc7 {[%clk 0:00:00]}  Ra4+ {[%clk 0:00:00]} 40. Kxd5 {[%clk 0:00:00]}  Nxe3+ {[%clk 0:00:00]} 41. Ke6 {[%clk 0:00:00]}  Nxd1 {[%clk 0:00:00]} 42. Rc8# {[%clk 0:00:00]} 1-0


[Site "https://www.chess.com"]

[Event "Titled Tuesday Blitz August 16 Late 2022"]
[White "Mihajlov, Sebastian"]
[Black "Romero Ruscalleda, Josep"]
[WhiteFideId "1512110"]
[BlackFideId "2231859"]
[WhiteElo "2464"]
[BlackElo "2193"]
[Result "1/2-1/2"]
[Round "03"]
[TimeControl "180+1"]
[Date "2022.08.18"]
[WhiteClock "0:00:00"]
[BlackClock "0:00:00"]

1. e4 {[%clk 0:00:00]}  g6 {[%clk 0:00:00]} 2. d4 {[%clk 0:00:00]}  Bg7 {[%clk 0:00:00]} 3. Nc3 {[%clk 0:00:00]}  d6 {[%clk 0:00:00]} 4. Be3 {[%clk 0:00:00]}  a6 {[%clk 0:00:00]} 5. h4 {[%clk 0:00:00]}  h5 {[%clk 0:00:00]} 6. Nh3 {[%clk 0:00:00]}  b5 {[%clk 0:00:00]} 7. Ng5 {[%clk 0:00:00]}  Bb7 {[%clk 0:00:00]} 8. Qd2 {[%clk 0:00:00]}  Nf6 {[%clk 0:00:00]} 9. f3 {[%clk 0:00:00]}  e6 {[%clk 0:00:00]} 10. O-O-O {[%clk 0:00:00]}  Qe7 {[%clk 0:00:00]} 11. Kb1 {[%clk 0:00:00]}  Nfd7 {[%clk 0:00:00]} 12. g4 {[%clk 0:00:00]}  Nc6 {[%clk 0:00:00]} 13. gxh5 {[%clk 0:00:00]}  Rxh5 {[%clk 0:00:00]} 14. Ne2 {[%clk 0:00:00]}  O-O-O {[%clk 0:00:00]} 15. Nf4 {[%clk 0:00:00]}  Rhh8 {[%clk 0:00:00]} 16. d5 {[%clk 0:00:00]}  Nce5 {[%clk 0:00:00]} 17. dxe6 {[%clk 0:00:00]}  fxe6 {[%clk 0:00:00]} 18. Ngxe6 {[%clk 0:00:00]}  Nxf3 {[%clk 0:00:00]} 19. Qf2 {[%clk 0:00:00]}  Qf6 {[%clk 0:00:00]} 20. Nxg7 {[%clk 0:00:00]}  Bxe4 {[%clk 0:00:00]} 21. Bg2 {[%clk 0:00:00]}  Nde5 {[%clk 0:00:00]} 22. Nge6 {[%clk 0:00:00]}  Rde8 {[%clk 0:00:00]} 23. Ng5 {[%clk 0:00:00]}  Nxg5 {[%clk 0:00:00]} 24. hxg5 {[%clk 0:00:00]}  Qf5 {[%clk 0:00:00]} 25. Bh3 {[%clk 0:00:00]}  Rxh3 {[%clk 0:00:00]} 26. Rxh3 {[%clk 0:00:00]}  Ng4 {[%clk 0:00:00]} 27. Qd2 {[%clk 0:00:00]}  Nxe3 {[%clk 0:00:00]} 28. Rxe3 {[%clk 0:00:00]}  Qxf4 {[%clk 0:00:00]} 29. Rde1 {[%clk 0:00:00]}  d5 {[%clk 0:00:00]} 30. Ka1 {[%clk 0:00:00]}  Qxg5 {[%clk 0:00:00]} 31. a4 {[%clk 0:00:00]}  Re6 {[%clk 0:00:00]} 32. Qa5 {[%clk 0:00:00]}  Rb6 {[%clk 0:00:00]} 33. axb5 {[%clk 0:00:00]}  axb5 {[%clk 0:00:00]} 34. Rc3 {[%clk 0:00:00]}  Kb7 {[%clk 0:00:00]} 35. Ra3 {[%clk 0:00:00]}  Kc6 {[%clk 0:00:00]} 36. Qc3+ {[%clk 0:00:00]}  Kd7 {[%clk 0:00:00]} 37. b4 {[%clk 0:00:00]}  Rc6 {[%clk 0:00:00]} 38. Qg7+ {[%clk 0:00:00]}  Qe7 {[%clk 0:00:00]} 39. Qd4 {[%clk 0:00:00]}  Rxc2 {[%clk 0:00:00]} 40. Ra7 {[%clk 0:00:00]}  Rc4 {[%clk 0:00:00]} 41. Qb2 {[%clk 0:00:00]}  Qxb4 {[%clk 0:00:00]} 42. Qg7+ {[%clk 0:00:00]}  Qe7 {[%clk 0:00:00]} 43. Qb2 {[%clk 0:00:00]}  Kd6 {[%clk 0:00:00]} 44. Rd1 {[%clk 0:00:00]}  Qe5 {[%clk 0:00:00]} 45. Ra6+ {[%clk 0:00:00]}  c6 {[%clk 0:00:00]} 46. Ka2 {[%clk 0:00:00]}  Qxb2+ {[%clk 0:00:00]} 47. Kxb2 {[%clk 0:00:00]}  Ke5 {[%clk 0:00:00]} 48. Rg1 {[%clk 0:00:00]}  Kf4 {[%clk 0:00:00]} 49. Ra8 {[%clk 0:00:00]}  Bf5 {[%clk 0:00:00]} 50. Rf8 {[%clk 0:00:00]}  Rc2+ {[%clk 0:00:00]} 51. Kb3 {[%clk 0:00:00]}  Re2 {[%clk 0:00:00]} 52. Rc1 {[%clk 0:00:00]}  Re6 {[%clk 0:00:00]} 53. Kb4 {[%clk 0:00:00]}  Ke5 {[%clk 0:00:00]} 54. Rc8 {[%clk 0:00:00]}  Re7 {[%clk 0:00:00]} 55. Kc5 {[%clk 0:00:00]}  Ra7 {[%clk 0:00:00]} 56. Rxc6 {[%clk 0:00:00]}  b4 {[%clk 0:00:00]} 57. Kxb4 {[%clk 0:00:00]}  Rb7+ {[%clk 0:00:00]} 58. Kc5 {[%clk 0:00:00]}  Be4 {[%clk 0:00:00]} 59. Re1 {[%clk 0:00:00]}  Rg7 {[%clk 0:00:00]} 60. Rc8 {[%clk 0:00:00]}  g5 {[%clk 0:00:00]} 61. Re8+ {[%clk 0:00:00]}  Kf4 {[%clk 0:00:00]} 62. Kd4 {[%clk 0:00:00]}  g4 {[%clk 0:00:00]} 63. Rf1+ {[%clk 0:00:00]}  Kg3 {[%clk 0:00:00]} 64. Ke3 {[%clk 0:00:00]}  Kg2 {[%clk 0:00:00]} 65. Rf2+ {[%clk 0:00:00]}  Kg3 {[%clk 0:00:00]} 66. Ra8 {[%clk 0:00:00]}  Rb7 {[%clk 0:00:00]} 67. Ra3 {[%clk 0:00:00]}  Rb1 {[%clk 0:00:00]} 68. Ke2+ {[%clk 0:00:00]}  Kh4 {[%clk 0:00:00]} 69. Ke3 {[%clk 0:00:00]}  g3 {[%clk 0:00:00]} 70. Rf4+ {[%clk 0:00:00]}  Kh3 {[%clk 0:00:00]} 71. Ke2 {[%clk 0:00:00]}  Rb2+ {[%clk 0:00:00]} 72. Kf1 {[%clk 0:00:00]}  Bg2+ {[%clk 0:00:00]} 73. Ke1 {[%clk 0:00:00]}  Rb1+ {[%clk 0:00:00]} 74. Ke2 {[%clk 0:00:00]}  Be4 {[%clk 0:00:00]} 75. Rf8 {[%clk 0:00:00]}  Kg2 {[%clk 0:00:00]} 76. Rg8 {[%clk 0:00:00]}  Rb2+ {[%clk 0:00:00]} 77. Ke1 {[%clk 0:00:00]}  Rb1+ {[%clk 0:00:00]} 78. Kd2 {[%clk 0:00:00]}  Rb2+ {[%clk 0:00:00]} 79. Kc1 {[%clk 0:00:00]}  Rc2+ {[%clk 0:00:00]} 80. Kd1 {[%clk 0:00:00]}  Rb2 {[%clk 0:00:00]} 81. Rgxg3+ {[%clk 0:00:00]}  Kf2 {[%clk 0:00:00]} 82. Rgc3 {[%clk 0:00:00]}  Rb1+ {[%clk 0:00:00]} 83. Kd2 {[%clk 0:00:00]}  Rb2+ {[%clk 0:00:00]} 84. Kd1 {[%clk 0:00:00]}  Rb1+ {[%clk 0:00:00]} 85. Kd2 {[%clk 0:00:00]}  Rb2+ {[%clk 0:00:00]} 86. Kc1 {[%clk 0:00:00]}  Rb1+ {[%clk 0:00:00]} 87. Kd2 {[%clk 0:00:00]} 1/2-1/2


[Site "https://www.chess.com"]

[Event "Titled Tuesday Blitz August 16 Late 2022"]
[White "Miszler, Levente"]
[Black "Barria Zuniga, Daniel"]
[WhiteFideId "763276"]
[BlackFideId "3400816"]
[WhiteElo "1966"]
[BlackElo "2414"]
[Result "1-0"]
[Round "03"]
[TimeControl "180+1"]
[Date "2022.08.18"]
[WhiteClock "0:00:00"]
[BlackClock "0:00:00"]

1. Nf3 {[%clk 0:00:00]}  g6 {[%clk 0:00:00]} 2. c4 {[%clk 0:00:00]}  Bg7 {[%clk 0:00:00]} 3. g3 {[%clk 0:00:00]}  e5 {[%clk 0:00:00]} 4. Bg2 {[%clk 0:00:00]}  Ne7 {[%clk 0:00:00]} 5. Nc3 {[%clk 0:00:00]}  O-O {[%clk 0:00:00]} 6. O-O {[%clk 0:00:00]}  d6 {[%clk 0:00:00]} 7. d4 {[%clk 0:00:00]}  Nd7 {[%clk 0:00:00]} 8. dxe5 {[%clk 0:00:00]}  Nxe5 {[%clk 0:00:00]} 9. Nxe5 {[%clk 0:00:00]}  Bxe5 {[%clk 0:00:00]} 10. Qc2 {[%clk 0:00:00]}  Bf5 {[%clk 0:00:00]} 11. e4 {[%clk 0:00:00]}  Be6 {[%clk 0:00:00]} 12. b3 {[%clk 0:00:00]}  Nc6 {[%clk 0:00:00]} 13. Bb2 {[%clk 0:00:00]}  Nd4 {[%clk 0:00:00]} 14. Qd2 {[%clk 0:00:00]}  a6 {[%clk 0:00:00]} 15. Ne2 {[%clk 0:00:00]}  Nxe2+ {[%clk 0:00:00]} 16. Qxe2 {[%clk 0:00:00]}  Qf6 {[%clk 0:00:00]} 17. Bxe5 {[%clk 0:00:00]}  dxe5 {[%clk 0:00:00]} 18. Rfd1 {[%clk 0:00:00]}  Rfd8 {[%clk 0:00:00]} 19. Qe3 {[%clk 0:00:00]}  Rd4 {[%clk 0:00:00]} 20. Rxd4 {[%clk 0:00:00]}  exd4 {[%clk 0:00:00]} 21. e5 {[%clk 0:00:00]}  dxe3 {[%clk 0:00:00]} 22. exf6 {[%clk 0:00:00]}  exf2+ {[%clk 0:00:00]} 23. Kxf2 {[%clk 0:00:00]}  c6 {[%clk 0:00:00]} 24. Rd1 {[%clk 0:00:00]}  g5 {[%clk 0:00:00]} 25. Be4 {[%clk 0:00:00]}  Re8 {[%clk 0:00:00]} 26. Kf3 {[%clk 0:00:00]}  h5 {[%clk 0:00:00]} 27. Re1 {[%clk 0:00:00]}  Bf5 {[%clk 0:00:00]} 28. h4 {[%clk 0:00:00]}  g4+ {[%clk 0:00:00]} 29. Kf4 {[%clk 0:00:00]}  Bxe4 {[%clk 0:00:00]} 30. Rxe4 {[%clk 0:00:00]}  Rxe4+ {[%clk 0:00:00]} 31. Kxe4 {[%clk 0:00:00]}  Kh7 {[%clk 0:00:00]} 32. c5 {[%clk 0:00:00]}  Kg6 {[%clk 0:00:00]} 33. Ke5 {[%clk 0:00:00]}  a5 {[%clk 0:00:00]} 34. a3 {[%clk 0:00:00]}  Kh7 {[%clk 0:00:00]} 35. Kf5 {[%clk 0:00:00]}  Kh6 {[%clk 0:00:00]} 36. a4 {[%clk 0:00:00]}  Kh7 {[%clk 0:00:00]} 37. Kg5 {[%clk 0:00:00]} 1-0


[Site "https://www.chess.com"]

[Event "Titled Tuesday Blitz August 16 Late 2022"]
[White "Moore, Alex"]
[Black "Fernandez Siles, Luis"]
[WhiteFideId "30910692"]
[BlackFideId "2209420"]
[WhiteElo "1912"]
[BlackElo "2211"]
[Result "1-0"]
[Round "03"]
[TimeControl "180+1"]
[Date "2022.08.18"]
[WhiteClock "0:00:00"]
[BlackClock "0:00:00"]

1. d4 {[%clk 0:00:00]}  Nf6 {[%clk 0:00:00]} 2. c4 {[%clk 0:00:00]}  g6 {[%clk 0:00:00]} 3. Nc3 {[%clk 0:00:00]}  Bg7 {[%clk 0:00:00]} 4. e4 {[%clk 0:00:00]}  d6 {[%clk 0:00:00]} 5. Nf3 {[%clk 0:00:00]}  O-O {[%clk 0:00:00]} 6. Be2 {[%clk 0:00:00]}  e5 {[%clk 0:00:00]} 7. O-O {[%clk 0:00:00]}  Nc6 {[%clk 0:00:00]} 8. d5 {[%clk 0:00:00]}  Ne7 {[%clk 0:00:00]} 9. b4 {[%clk 0:00:00]}  Nh5 {[%clk 0:00:00]} 10. g3 {[%clk 0:00:00]}  h6 {[%clk 0:00:00]} 11. Nd2 {[%clk 0:00:00]}  f5 {[%clk 0:00:00]} 12. Bxh5 {[%clk 0:00:00]}  gxh5 {[%clk 0:00:00]} 13. Qxh5 {[%clk 0:00:00]}  f4 {[%clk 0:00:00]} 14. Nf3 {[%clk 0:00:00]}  Bd7 {[%clk 0:00:00]} 15. Kh1 {[%clk 0:00:00]}  Be8 {[%clk 0:00:00]} 16. Qg4 {[%clk 0:00:00]}  Bd7 {[%clk 0:00:00]} 17. Qh5 {[%clk 0:00:00]}  Rf6 {[%clk 0:00:00]} 18. gxf4 {[%clk 0:00:00]}  Be8 {[%clk 0:00:00]} 19. Qg4 {[%clk 0:00:00]}  Rg6 {[%clk 0:00:00]} 20. Qh4 {[%clk 0:00:00]}  exf4 {[%clk 0:00:00]} 21. Bb2 {[%clk 0:00:00]}  Qd7 {[%clk 0:00:00]} 22. Rg1 {[%clk 0:00:00]}  Bf7 {[%clk 0:00:00]} 23. Nd1 {[%clk 0:00:00]}  Bxb2 {[%clk 0:00:00]} 24. Nxb2 {[%clk 0:00:00]}  Rf8 {[%clk 0:00:00]} 25. Nd3 {[%clk 0:00:00]}  Kh7 {[%clk 0:00:00]} 26. Nxf4 {[%clk 0:00:00]}  Rxg1+ {[%clk 0:00:00]} 27. Rxg1 {[%clk 0:00:00]}  Ng6 {[%clk 0:00:00]} 28. Nxg6 {[%clk 0:00:00]}  Bxg6 {[%clk 0:00:00]} 29. Ng5+ {[%clk 0:00:00]}  Kg8 {[%clk 0:00:00]} 30. Qxh6 {[%clk 0:00:00]}  Qg7 {[%clk 0:00:00]} 31. Qxg7+ {[%clk 0:00:00]}  Kxg7 {[%clk 0:00:00]} 32. Ne6+ {[%clk 0:00:00]}  Kf7 {[%clk 0:00:00]} 33. Rxg6 {[%clk 0:00:00]}  Rh8 {[%clk 0:00:00]} 1-0


[Site "https://www.chess.com"]

[Event "Titled Tuesday Blitz August 16 Late 2022"]
[White "Novikova, Galina"]
[Black "Dubov, Daniil"]
[WhiteFideId "4157095"]
[BlackFideId "24126055"]
[WhiteElo "2073"]
[BlackElo "2702"]
[Result "0-1"]
[Round "03"]
[TimeControl "180+1"]
[Date "2022.08.18"]
[WhiteClock "0:00:00"]
[BlackClock "0:00:00"]

1. e4 {[%clk 0:00:00]}  Nc6 {[%clk 0:00:00]} 2. Nf3 {[%clk 0:00:00]}  d5 {[%clk 0:00:00]} 3. e5 {[%clk 0:00:00]}  Bg4 {[%clk 0:00:00]} 4. d4 {[%clk 0:00:00]}  Bxf3 {[%clk 0:00:00]} 5. gxf3 {[%clk 0:00:00]}  e6 {[%clk 0:00:00]} 6. Be3 {[%clk 0:00:00]}  Nge7 {[%clk 0:00:00]} 7. Nc3 {[%clk 0:00:00]}  Nf5 {[%clk 0:00:00]} 8. Qd2 {[%clk 0:00:00]}  Bb4 {[%clk 0:00:00]} 9. Rg1 {[%clk 0:00:00]}  Qd7 {[%clk 0:00:00]} 10. Bh3 {[%clk 0:00:00]}  Na5 {[%clk 0:00:00]} 11. Bxf5 {[%clk 0:00:00]}  Nc4 {[%clk 0:00:00]} 12. Qc1 {[%clk 0:00:00]}  exf5 {[%clk 0:00:00]} 13. Rxg7 {[%clk 0:00:00]}  O-O-O {[%clk 0:00:00]} 14. a3 {[%clk 0:00:00]}  Bxc3+ {[%clk 0:00:00]} 15. bxc3 {[%clk 0:00:00]}  Rhg8 {[%clk 0:00:00]} 16. Rg3 {[%clk 0:00:00]}  h5 {[%clk 0:00:00]} 17. f4 {[%clk 0:00:00]}  h4 {[%clk 0:00:00]} 18. Rg5 {[%clk 0:00:00]}  Rxg5 {[%clk 0:00:00]} 19. fxg5 {[%clk 0:00:00]}  f4 {[%clk 0:00:00]} 20. Bxf4 {[%clk 0:00:00]}  Qg4 {[%clk 0:00:00]} 21. Kf1 {[%clk 0:00:00]}  Qf3 {[%clk 0:00:00]} 22. Rb1 {[%clk 0:00:00]}  Rg8 {[%clk 0:00:00]} 23. a4 {[%clk 0:00:00]}  a5 {[%clk 0:00:00]} 24. Be3 {[%clk 0:00:00]}  h3 {[%clk 0:00:00]} 25. Rb5 {[%clk 0:00:00]}  f6 {[%clk 0:00:00]} 26. exf6 {[%clk 0:00:00]}  Re8 {[%clk 0:00:00]} 27. Bf4 {[%clk 0:00:00]}  Qe2+ {[%clk 0:00:00]} 28. Kg1 {[%clk 0:00:00]}  Qe1+ {[%clk 0:00:00]} 0-1


[Site "https://www.chess.com"]

[Event "Titled Tuesday Blitz August 16 Late 2022"]
[White "Omariev, Maksim"]
[Black "Gascon Del Nogal, Jose Rafael"]
[WhiteFideId "4193423"]
[BlackFideId "3902463"]
[WhiteElo "2304"]
[BlackElo "2473"]
[Result "1-0"]
[Round "03"]
[TimeControl "180+1"]
[Date "2022.08.18"]
[WhiteClock "0:00:00"]
[BlackClock "0:00:00"]

1. g4 {[%clk 0:00:00]}  d5 {[%clk 0:00:00]} 2. Bg2 {[%clk 0:00:00]}  c6 {[%clk 0:00:00]} 3. h3 {[%clk 0:00:00]}  e5 {[%clk 0:00:00]} 4. d4 {[%clk 0:00:00]}  e4 {[%clk 0:00:00]} 5. c4 {[%clk 0:00:00]}  Be6 {[%clk 0:00:00]} 6. Nc3 {[%clk 0:00:00]}  Qd7 {[%clk 0:00:00]} 7. Bf4 {[%clk 0:00:00]}  Ne7 {[%clk 0:00:00]} 8. Qd2 {[%clk 0:00:00]}  Ng6 {[%clk 0:00:00]} 9. Bg3 {[%clk 0:00:00]}  Bd6 {[%clk 0:00:00]} 10. O-O-O {[%clk 0:00:00]}  Bxg3 {[%clk 0:00:00]} 11. fxg3 {[%clk 0:00:00]}  Na6 {[%clk 0:00:00]} 12. Kb1 {[%clk 0:00:00]}  O-O {[%clk 0:00:00]} 13. g5 {[%clk 0:00:00]}  f5 {[%clk 0:00:00]} 14. h4 {[%clk 0:00:00]}  f4 {[%clk 0:00:00]} 15. h5 {[%clk 0:00:00]}  e3 {[%clk 0:00:00]} 16. Qc1 {[%clk 0:00:00]}  Bf5+ {[%clk 0:00:00]} 17. Ka1 {[%clk 0:00:00]}  Nb4 {[%clk 0:00:00]} 18. a3 {[%clk 0:00:00]}  Nc2+ {[%clk 0:00:00]} 19. Ka2 {[%clk 0:00:00]}  Ne7 {[%clk 0:00:00]} 20. g4 {[%clk 0:00:00]}  Nxa3 {[%clk 0:00:00]} 21. gxf5 {[%clk 0:00:00]}  Nxc4 {[%clk 0:00:00]} 22. f6 {[%clk 0:00:00]}  gxf6 {[%clk 0:00:00]} 23. gxf6 {[%clk 0:00:00]}  Rxf6 {[%clk 0:00:00]} 24. Nf3 {[%clk 0:00:00]}  c5 {[%clk 0:00:00]} 25. dxc5 {[%clk 0:00:00]}  Ra6+ {[%clk 0:00:00]} 26. Kb1 {[%clk 0:00:00]}  Qf5+ {[%clk 0:00:00]} 27. Rd3 {[%clk 0:00:00]}  Rc8 {[%clk 0:00:00]} 28. Nd4 {[%clk 0:00:00]}  Qe5 {[%clk 0:00:00]} 29. Nb3 {[%clk 0:00:00]}  b6 {[%clk 0:00:00]} 30. Bxd5+ {[%clk 0:00:00]}  Nxd5 {[%clk 0:00:00]} 31. Rxd5 {[%clk 0:00:00]}  Qe6 {[%clk 0:00:00]} 32. Rg1+ {[%clk 0:00:00]}  Kh8 {[%clk 0:00:00]} 33. Nd4 {[%clk 0:00:00]}  Qf7 {[%clk 0:00:00]} 34. Nb3 {[%clk 0:00:00]}  bxc5 {[%clk 0:00:00]} 35. Qc2 {[%clk 0:00:00]}  Rb6 {[%clk 0:00:00]} 36. Rgd1 {[%clk 0:00:00]}  Nd2+ {[%clk 0:00:00]} 37. Nxd2 {[%clk 0:00:00]}  exd2 {[%clk 0:00:00]} 38. R1xd2 {[%clk 0:00:00]}  Rg8 {[%clk 0:00:00]} 39. Rd8 {[%clk 0:00:00]} 1-0


[Site "https://www.chess.com"]

[Event "Titled Tuesday Blitz August 16 Late 2022"]
[White "Oro, Luis"]
[Black "Fernandez Hernandez, Gerardo"]
[WhiteFideId "104094"]
[BlackFideId "2207400"]
[WhiteElo "2255"]
[BlackElo "2169"]
[Result "1-0"]
[Round "03"]
[TimeControl "180+1"]
[Date "2022.08.18"]
[WhiteClock "0:00:00"]
[BlackClock "0:00:00"]

1. e4 {[%clk 0:00:00]}  e6 {[%clk 0:00:00]} 2. d4 {[%clk 0:00:00]}  d5 {[%clk 0:00:00]} 3. Nd2 {[%clk 0:00:00]}  Nc6 {[%clk 0:00:00]} 4. c3 {[%clk 0:00:00]}  e5 {[%clk 0:00:00]} 5. exd5 {[%clk 0:00:00]}  Qxd5 {[%clk 0:00:00]} 6. Ngf3 {[%clk 0:00:00]}  exd4 {[%clk 0:00:00]} 7. Bc4 {[%clk 0:00:00]}  Qh5 {[%clk 0:00:00]} 8. cxd4 {[%clk 0:00:00]}  Nf6 {[%clk 0:00:00]} 9. O-O {[%clk 0:00:00]}  Be7 {[%clk 0:00:00]} 10. Re1 {[%clk 0:00:00]}  Bg4 {[%clk 0:00:00]} 11. h3 {[%clk 0:00:00]}  Bxf3 {[%clk 0:00:00]} 12. Nxf3 {[%clk 0:00:00]}  O-O-O {[%clk 0:00:00]} 13. Bf4 {[%clk 0:00:00]}  Nd5 {[%clk 0:00:00]} 14. Be5 {[%clk 0:00:00]}  f6 {[%clk 0:00:00]} 15. Bg3 {[%clk 0:00:00]}  Bb4 {[%clk 0:00:00]} 16. Re4 {[%clk 0:00:00]}  Rhe8 {[%clk 0:00:00]} 17. Qe2 {[%clk 0:00:00]}  Nb6 {[%clk 0:00:00]} 18. Be6+ {[%clk 0:00:00]}  Kb8 {[%clk 0:00:00]} 19. Bg4 {[%clk 0:00:00]}  Rxe4 {[%clk 0:00:00]} 20. Qxe4 {[%clk 0:00:00]}  Qe8 {[%clk 0:00:00]} 21. Qxh7 {[%clk 0:00:00]}  g5 {[%clk 0:00:00]} 22. Qxc7+ {[%clk 0:00:00]}  Ka8 {[%clk 0:00:00]} 23. a3 {[%clk 0:00:00]}  Nd5 {[%clk 0:00:00]} 24. Qh7 {[%clk 0:00:00]}  Bd6 {[%clk 0:00:00]} 25. Re1 {[%clk 0:00:00]}  Qf8 {[%clk 0:00:00]} 26. Bxd6 {[%clk 0:00:00]}  Qxd6 {[%clk 0:00:00]} 27. Qf7 {[%clk 0:00:00]}  Nf4 {[%clk 0:00:00]} 28. g3 {[%clk 0:00:00]}  Nd5 {[%clk 0:00:00]} 29. Re6 {[%clk 0:00:00]}  Qc7 {[%clk 0:00:00]} 30. Qxc7 {[%clk 0:00:00]}  Nxc7 {[%clk 0:00:00]} 31. Rxf6 {[%clk 0:00:00]}  a6 {[%clk 0:00:00]} 32. Nxg5 {[%clk 0:00:00]}  Nxd4 {[%clk 0:00:00]} 33. h4 {[%clk 0:00:00]}  Nd5 {[%clk 0:00:00]} 34. Rf7 {[%clk 0:00:00]}  Re8 {[%clk 0:00:00]} 35. h5 {[%clk 0:00:00]}  Re1+ {[%clk 0:00:00]} 36. Kg2 {[%clk 0:00:00]}  Rc1 {[%clk 0:00:00]} 37. h6 {[%clk 0:00:00]}  Nc2 {[%clk 0:00:00]} 38. h7 {[%clk 0:00:00]}  Ne1+ {[%clk 0:00:00]} 39. Kh2 {[%clk 0:00:00]} 1-0


[Site "https://www.chess.com"]

[Event "Titled Tuesday Blitz August 16 Late 2022"]
[White "Pham, Khoi"]
[Black "Quispe Santacruz, Javier"]
[WhiteFideId "1054988"]
[BlackFideId "3800920"]
[WhiteElo "2376"]
[BlackElo "1929"]
[Result "0-1"]
[Round "03"]
[TimeControl "180+1"]
[Date "2022.08.18"]
[WhiteClock "0:00:00"]
[BlackClock "0:00:00"]

1. d4 {[%clk 0:00:00]}  d5 {[%clk 0:00:00]} 2. c4 {[%clk 0:00:00]}  c6 {[%clk 0:00:00]} 3. Nf3 {[%clk 0:00:00]}  Nf6 {[%clk 0:00:00]} 4. Nc3 {[%clk 0:00:00]}  dxc4 {[%clk 0:00:00]} 5. a4 {[%clk 0:00:00]}  Bf5 {[%clk 0:00:00]} 6. Ne5 {[%clk 0:00:00]}  Nbd7 {[%clk 0:00:00]} 7. Nxc4 {[%clk 0:00:00]}  Nb6 {[%clk 0:00:00]} 8. Ne5 {[%clk 0:00:00]}  a5 {[%clk 0:00:00]} 9. f3 {[%clk 0:00:00]}  Nfd7 {[%clk 0:00:00]} 10. e4 {[%clk 0:00:00]}  Nxe5 {[%clk 0:00:00]} 11. dxe5 {[%clk 0:00:00]}  Qxd1+ {[%clk 0:00:00]} 12. Nxd1 {[%clk 0:00:00]}  Bg6 {[%clk 0:00:00]} 13. Be2 {[%clk 0:00:00]}  e6 {[%clk 0:00:00]} 14. Ne3 {[%clk 0:00:00]}  Bb4+ {[%clk 0:00:00]} 15. Kf2 {[%clk 0:00:00]}  Rd8 {[%clk 0:00:00]} 16. Nc4 {[%clk 0:00:00]}  Nxc4 {[%clk 0:00:00]} 17. Bxc4 {[%clk 0:00:00]}  Bc5+ {[%clk 0:00:00]} 18. Be3 {[%clk 0:00:00]}  Rd2+ {[%clk 0:00:00]} 19. Be2 {[%clk 0:00:00]}  Bxe3+ {[%clk 0:00:00]} 20. Kxe3 {[%clk 0:00:00]}  Rxb2 {[%clk 0:00:00]} 21. Rab1 {[%clk 0:00:00]}  Rb4 {[%clk 0:00:00]} 22. Rxb4 {[%clk 0:00:00]}  axb4 {[%clk 0:00:00]} 23. Kd3 {[%clk 0:00:00]}  Ke7 {[%clk 0:00:00]} 24. Kc4 {[%clk 0:00:00]}  Rd8 {[%clk 0:00:00]} 25. Rb1 {[%clk 0:00:00]}  Rd2 {[%clk 0:00:00]} 26. Bf1 {[%clk 0:00:00]}  f5 {[%clk 0:00:00]} 27. exf6+ {[%clk 0:00:00]}  gxf6 {[%clk 0:00:00]} 28. Rxb4 {[%clk 0:00:00]}  Rd7 {[%clk 0:00:00]} 29. Rb2 {[%clk 0:00:00]}  e5 {[%clk 0:00:00]} 30. Kc5 {[%clk 0:00:00]}  Kd8 {[%clk 0:00:00]} 31. Bc4 {[%clk 0:00:00]}  Kc7 {[%clk 0:00:00]} 32. a5 {[%clk 0:00:00]}  Rd4 {[%clk 0:00:00]} 33. a6 {[%clk 0:00:00]}  b6+ {[%clk 0:00:00]} 34. Kb4 {[%clk 0:00:00]}  b5 {[%clk 0:00:00]} 35. a7 {[%clk 0:00:00]}  Rxc4+ {[%clk 0:00:00]} 36. Kb3 {[%clk 0:00:00]}  Kb7 {[%clk 0:00:00]} 37. Ra2 {[%clk 0:00:00]}  Ra4 {[%clk 0:00:00]} 38. Rxa4 {[%clk 0:00:00]}  bxa4+ {[%clk 0:00:00]} 39. Kxa4 {[%clk 0:00:00]}  Kxa7 {[%clk 0:00:00]} 40. Kb4 {[%clk 0:00:00]}  Kb6 {[%clk 0:00:00]} 41. Kc4 {[%clk 0:00:00]}  Bf7+ {[%clk 0:00:00]} 42. Kc3 {[%clk 0:00:00]}  Kc5 {[%clk 0:00:00]} 43. g3 {[%clk 0:00:00]}  Bh5 {[%clk 0:00:00]} 44. f4 {[%clk 0:00:00]}  Bf3 {[%clk 0:00:00]} 45. Kd3 {[%clk 0:00:00]}  Kb4 {[%clk 0:00:00]} 46. Ke3 {[%clk 0:00:00]}  Bg2 {[%clk 0:00:00]} 47. fxe5 {[%clk 0:00:00]}  fxe5 {[%clk 0:00:00]} 48. g4 {[%clk 0:00:00]}  c5 {[%clk 0:00:00]} 49. g5 {[%clk 0:00:00]}  c4 {[%clk 0:00:00]} 50. h4 {[%clk 0:00:00]}  c3 {[%clk 0:00:00]} 51. h5 {[%clk 0:00:00]}  Kb3 {[%clk 0:00:00]} 52. g6 {[%clk 0:00:00]}  c2 {[%clk 0:00:00]} 53. g7 {[%clk 0:00:00]}  c1=Q+ {[%clk 0:00:00]} 54. Kf2 {[%clk 0:00:00]}  Qg5 {[%clk 0:00:00]} 55. h6 {[%clk 0:00:00]}  Bxe4 {[%clk 0:00:00]} 56. Ke2 {[%clk 0:00:00]}  Bd5 {[%clk 0:00:00]} 0-1


[Site "https://www.chess.com"]